Cogmind - Beta 13 @@@ ROGUE MODE // 2024.08.05 @ 19:26:01 Player: Nell Result: Destroyed by H-61 Shepherd with Heavy Assault Cannon Performance ------------- Evolutions (2) 1000 Regions Visited (4) 800 Robots Destroyed (26) 130 Value Destroyed (613) 613 Prototype IDs (0) 0 Alien Tech Used (0) 0 Bonus (100) 100 TOTAL SCORE: 2643 Bonus ------- Follower Combat Kills 100 Cogmind --------- Core Integrity 0/550 Matter 154/300 Energy 99/100 System Corruption 0% Temperature Warm (138) Movement Core (50) Location -8/Materials Parts ------- > --- POWER (2) -------- (None) > --- PROPULSION (3) --- (None) > --- UTILITY (4) ------ (None) > --- WEAPON (2) ------- (None) > --- INVENTORY (5) ---- Deuterium Engine Deuterium Engine Peak State ------------ > --- POWER ------------ Deuterium Engine Light Angular Momentum Engine > --- PROPULSION ------- Aluminum Leg Aluminum Leg Carbon-fiber Leg > --- UTILITY ---------- Medium Storage Unit Weight Redist. System Visual Processing Unit Improved Utility Shielding > --- WEAPON ----------- Heavy Assault Cannon > --- INVENTORY -------- Deuterium Engine Deuterium Engine Nuclear Core Bore Cannon Grenade Launcher [Rating: 28] Favorites ----------- Power Ion Engine Engine Ion Engine Power Core Light Nuclear Core Propulsion Aluminum Leg Leg Aluminum Leg Wheel Compact Wheel Utility Medium Storage Unit Device Seismic Detector Storage Medium Storage Unit Processor Visual Processing Unit Protection Weapon Shielding Weapon Hammer Energy Gun EM Pulse Gun Ballistic Gun Light Assault Rifle Ballistic Cannon Heavy Assault Cannon Launcher Grenade Launcher Impact Weapon Hammer Build | -11 -10 -10 -9 -8 ------- Run | Yrd Mat Min Mat Mat Slots Evolved 4 | . . . 2 2 Power 1 | . . . . 1 Propulsion 1 | . . . 1 . Utility 2 | . . . 1 1 Weapon . | . . . . . Parts Attached 40 | 8 8 5 6 13 Power 10 | 1 1 1 2 5 Engine 7 | 1 1 . 1 4 Core 3 | . . 1 1 1 Reactor . | . . . . . Propulsion 11 | 3 4 1 1 2 Treads . | . . . . . Leg 10 | 2 4 1 1 2 Wheel 1 | 1 . . . . Hover . | . . . . . Flight . | . . . . . Utility 9 | 2 1 . 2 4 Device 2 | 1 . . . 1 Storage 2 | 1 1 . . . Processor 2 | . . . 1 1 Hackware . | . . . . . Protection 3 | . . . 1 2 Artifact . | . . . . . Weapon 10 | 2 2 3 1 2 Energy Gun 3 | 2 1 . . . Energy Cannon . | . . . . . Ballistic Gun 1 | . . 1 . . Ballistic Cannon 3 | . . 1 1 1 Launcher 2 | . . 1 . 1 Special Weapon . | . . . . . Impact Weapon 1 | . 1 . . . Slashing Weapon . | . . . . . Piercing Weapon . | . . . . . Special Melee Weapon . | . . . . . Unidentified Prototypes . | . . . . . Parts Lost 16 | . . 1 . 15 Power 4 | . . . . 4 Propulsion 6 | . . 1 . 5 Utility 3 | . . . . 3 Weapon 3 | . . . . 3 Highest Loss Streak 8 | . . 1 . 8 To Critical Strikes . | . . . . . Average Slot Usage (%) 96 | . 100 100 91 79 Engine 9 | . 14 7 . 9 Core 4 | . . 6 10 3 Leg 28 | . 28 28 33 23 Device 11 | . 14 14 6 6 Storage 12 | . 14 14 11 9 Processor 2 | . . . 5 11 Protection 2 | . . . 11 6 Energy Gun 7 | . 20 . . . Ballistic Cannon 4 | . . 5 11 9 Launcher 2 | . . 6 . . Impact Weapon 8 | . 7 14 3 . Naked Turns 4 | . . . . 4 Heaviest Build 40 | 14 20 27 32 40 Greatest Support 41 | 20 20 20 30 41 Greatest Overweight (x) 1 | 1 . 1 1 1 Average Overweight (x) . | . . . . . Largest Inventory Capacity 10 | 8 10 10 10 10 Average Capacity 9 | 7 9 10 10 9 Most Carried 10 | 3 10 10 10 10 Average Carried 8 | 2 8 9 9 6 Final Capacity 10 | 8 10 10 10 5 Final Carried 10 | 3 10 10 10 2 Class Distribution -------------------- 72% | Mutant 27% | Scavenger-Mutant Dominant Class ---------------- Mutant | -10/Materials Mutant | -10/Mines Scavenger-Mutant | -9/Materials Scavenger-Mutant | -8/Materials Resources | -11 -10 -10 -9 -8 ----------- Run | Yrd Mat Min Mat Mat Matter Collected 686 | 263 94 76 81 172 Remotely . | . . . . . Salvage Created 748 | 35 439 59 38 177 Parts 36 | 6 17 5 1 7 Haulers Intercepted 2 | . 1 . 1 . Recyclers Shooed . | . . . . . Parts Field Recycled . | . . . . . Retrieved Matter . | . . . . . Parts Self-Destructed . | . . . . . Prevented . | . . . . . Kills | -11 -10 -10 -9 -8 ------- Run | Yrd Mat Min Mat Mat Combat Hostiles Destroyed 14 | . 6 4 . 4 Melee 5 | . 5 . . . Guns 1 | . 1 . . . Cannons 4 | . . . . 4 AOE 4 | . . 4 . . Classes Destroyed 9 | 1 6 1 . 1 Worker 3 | . 2 . . 1 Builder 1 | . 1 . . . Tunneler 3 | 2 1 . . . Hauler 2 | . 1 . 1 . Operator 2 | . 2 . . . Watcher 1 | . 1 . . . Swarmer 3 | . . 3 . . Grunt 10 | . 6 1 . 3 Specialist 1 | . . . . 1 Best Kill Streak 5 | 2 5 3 1 2 Combat Bots Only 3 | . 2 3 . 2 Max Kills in Single Turn 2 | 1 1 2 1 1 Gunslinging . | . . . . . Exploded 2 | . . 2 . . Melee 1 | . 1 . . . Uniques/NPCs Destroyed . | . . . . . Combat | -11 -10 -10 -9 -8 -------- Run | Yrd Mat Min Mat Mat Hostile Shots Fired 161 | . 32 17 . 112 Missed 48 | . 10 7 . 31 Damage Taken 2245 | . 254 182 . 1809 Core 691 | . 86 36 . 569 Absorbed by Shields . | . . . . . Redirected to Shielding 80 | . . . . 80 Core Remaining (%) 83 | 100 . 51 100 . Volleys Fired 56 | 6 11 7 3 29 Largest 2 | 2 2 1 1 2 Hottest 87 | 80 80 30 60 87 Shots Fired 66 | 12 14 7 3 30 Gun 30 | 12 14 4 . . Cannon 32 | . . . 3 29 Launcher 4 | . . 3 . 1 Special . | . . . . . Kinetic 36 | . . 4 3 29 Thermal 9 | 6 3 . . . Explosive 4 | . . 3 . 1 Electromagnetic 17 | 6 11 . . . Robot Hit Streak 6 | 2 5 6 3 2 Robot Miss Streak 6 | 3 2 2 1 6 Penetration Max . | . . . . . Secondary Targets . | . . . . . Shots Hit Robots 56 | 5 33 5 2 11 Core Hits 25 | 2 9 5 1 8 Critical Kills 2 | . 2 . . . Critical Parts Destroyed 8 | . 2 . . 6 Critical Strikes 12 | . 4 . 1 7 Destroy 6 | . . . . 6 Blast 2 | . . . 1 1 Smash 4 | . 4 . . . Melee Attacks 29 | . 28 1 . . Impact 29 | . 28 1 . . Slashing . | . . . . . Piercing . | . . . . . Sneak Attacks 6 | . 6 . . . Combat Hostiles . | . . . . . Follow-up Attacks . | . . . . . Damage Inflicted 2024 | 70 967 250 105 632 Guns 219 | 56 140 23 . . Cannons 679 | . . . 105 574 Explosions 276 | . 21 197 . 58 Melee 836 | . 806 30 . . Ramming 14 | 14 . . . . Kinetic 702 | . . 23 105 574 Thermal 74 | 43 31 . . . Explosive 255 | . . 197 . 58 Electromagnetic 143 | 13 130 . . . Impact 836 | . 806 30 . . Slashing . | . . . . . Piercing . | . . . . . Highest Corruption 1 | . 1 1 . . Average Corruption 1 | . 1 1 . . Corruption Purged . | . . . . . Corruption Blocked . | . . . . . Effects 10 | . 3 7 . . Message Errors 3 | . 1 2 . . Matter Fused 5 | . 2 3 . . Energy Discharges 1 | . . 1 . . Data Loss (minor) 1 | . . 1 . . Overload Shots . | . . . . . Overflow Damage 225 | . 215 10 . . Projectiles . | . . . . . Explosions . | . . . . . Melee 225 | . 215 10 . . Knockbacks 7 | . 5 . . 2 Impact 4 | . 4 . . . Kinetic 2 | . . . . 2 Secondary 1 | . 1 . . . Self-Inflicted Damage 73 | . . 61 . 12 Shots 3 | . . 2 . 1 Rammed . | . . . . . Targets Rammed 4 | 4 . . . . Kicked 4 | 4 . . . . Crushed . | . . . . . Highest Temperature 253 | 36 36 6 18 253 Average Temperature 61 | 20 14 5 13 88 Received Heat Transfer 546 | . 135 42 . 369 Siege Activations . | . . . . . Robots Corrupted . | . . . . . Combat Hostiles . | . . . . . Parts Fried 6 | . 6 . . . Impact Corruptions 11 | . 10 1 . . Robots Melted . | . . . . . Combat Hostiles . | . . . . . Parts Melted . | . . . . . Heat Transferred 175 | 100 75 . . . Parts Sabotaged . | . . . . . Parts Stolen . | . . . . . Parts Stripped . | . . . . . Power Chain Reactions 1 | . 1 . . . Alert | -11 -10 -10 -9 -8 ------- Run | Yrd Mat Min Mat Mat Peak Influence 204 | 10 204 198 84 76 Initial 35 | . 6 16 . 35 Average 68 | 2 47 135 36 32 Maximum Alert Level 1 | . 1 . . . Low Security (%) 99 | 100 98 100 100 100 Level 1 . | . 1 . . . Level 2 . | . . . . . Level 3 . | . . . . . Level 4 . | . . . . . Level 5 . | . . . . . High Security . | . . . . . Max Security . | . . . . . Squads Dispatched 5 | . 2 . 1 2 Investigation 2 | . 1 . 1 . Extermination . | . . . . . Reinforcement 3 | . 1 . . 2 Assault . | . . . . . Garrison . | . . . . . Intercept . | . . . . . Searches Triggered . | . . . . . Construction Impeded . | . . . . . Haulers Reinforced . | . . . . . Active Scanning Responses . | . . . . . Cargo Convoy Interrupts . | . . . . . Stealth | -11 -10 -10 -9 -8 --------- Run | Yrd Mat Min Mat Mat Distress Signals 3 | . 2 . . 1 Communications Jammed . | . . . . . Distress Signals . | . . . . . Times Spotted 30 | . 12 5 3 10 Peak Tracking Total 7 | . 4 3 2 7 Tactical Retreats 1 | . . . . 1 Traps | -11 -10 -10 -9 -8 ------- Run | Yrd Mat Min Mat Mat Traps Triggered 1 | . 1 . . . Indirectly . | . . . . . Trap Hack Attempts . | . . . . . Triggered . | . . . . . Disarmed . | . . . . . Reprogrammed . | . . . . . Reused . | . . . . . Traps Extracted . | . . . . . Installed . | . . . . . Triggered . | . . . . . Machines | -11 -10 -10 -9 -8 ---------- Run | Yrd Mat Min Mat Mat Machines Disabled 4 | . . 3 1 . Max in Single Turn 2 | . . 2 1 . Machines Repaired . | . . . . . Machines Dismantled . | . . . . . Machines Sabotaged . | . . . . . Overloaded Fab Kills . | . . . . . Hacking | -11 -10 -10 -9 -8 --------- Run | Yrd Mat Min Mat Mat Machines Accessed 6 | . 3 . 3 . Terminals 6 | . 3 . 3 . Fabricators . | . . . . . Repair Stations . | . . . . . Recycling Units . | . . . . . Scanalyzers . | . . . . . Garrison Access . | . . . . . Total Hacks 17 | . 10 . 7 . Successful 7 | . 5 . 2 . Failed 10 | . 5 . 5 . Catastrophic 3 | . . . 3 . Database Lockouts . | . . . . . Manual 6 | . 2 . 4 . Terminals 17 | . 10 . 7 . Fabricators . | . . . . . Repair Stations . | . . . . . Recycling Units . | . . . . . Scanalyzers . | . . . . . Garrison Access . | . . . . . Terminal Hacks 7 | . 5 . 2 . Robot Analysis 1 | . 1 . . . Branch Access Points 2 | . 2 . . . Locate Traps 1 | . 1 . . . Transport Status 1 | . . . 1 . Recall Investigation 1 | . . . 1 . Zone Layout 1 | . 1 . . . Fabricator Hacks . | . . . . . Repair Station Hacks . | . . . . . Recycling Unit Hacks . | . . . . . Scanalyzer . | . . . . . Garrison Access Hacks . | . . . . . Unauthorized Hacks . | . . . . . Terminals . | . . . . . Fabricators . | . . . . . Repair Stations . | . . . . . Recycling Units . | . . . . . Scanalyzers . | . . . . . Garrison Access . | . . . . . Data Cores Recovered 1 | . 1 . . . Used 1 | . 1 . . . Hacking Detections 6 | . 3 . 3 . Full Trace Events 2 | . 1 . 1 . Feedback Events 1 | . 1 . . . Corruption 1 | . 1 . . . Feedback Blocked . | . . . . . Robot Schematics Acquired . | . . . . . Robots Built . | . . . . . Authchips . | . . . . . Time . | . . . . . Total Robot Build Rating . | . . . . . Part Schematics Acquired . | . . . . . Parts Built . | . . . . . Authchips . | . . . . . Time . | . . . . . Total Part Build Rating . | . . . . . Parts Repaired . | . . . . . Time . | . . . . . Parts Recycled . | . . . . . Recycled Matter . | . . . . . Retrieved Matter . | . . . . . Retrieved Components . | . . . . . Parts Scanalyzed . | . . . . . Part Schematics Acquired . | . . . . . Parts Damaged . | . . . . . Bothacking | -11 -10 -10 -9 -8 ------------ Run | Yrd Mat Min Mat Mat Used RIF Installer . | . . . . . Robots Hacked . | . . . . . Non-combat . | . . . . . Combat . | . . . . . Robot Hacks Applied . | . . . . . Relay Couplers Released . | . . . . . Fabnet Peak Effective % . | . . . . . Robots Rewired . | . . . . . Allies Hacked . | . . . . . Hacks Repelled . | . . . . . Allies | -11 -10 -10 -9 -8 -------- Run | Yrd Mat Min Mat Mat Total Allies 2 | . . 2 . . Largest Group 2 | . . 2 2 2 Highest-Rated Group 45 | . . 45 45 45 Highest-Rated Ally 31 | . . 31 31 31 Total Orders . | . . . . . Ally Attacks 25 | . . 7 3 15 Total Damage 397 | . . 127 42 228 Kills 4 | . . 1 2 1 Allies Corrupted . | . . . . . Allies Melted . | . . . . . Intel | -11 -10 -10 -9 -8 ------- Run | Yrd Mat Min Mat Mat Robot Analysis Total 1 | . 1 . . . Derelict Logs Recovered . | . . . . . Drone Launches . | . . . . . Drone Recoveries . | . . . . . Exploration | -11 -10 -10 -9 -8 ------------- Run | Yrd Mat Min Mat Mat Turns Passed 1535 | 102 549 489 221 174 Spaces Moved 884 | 59 349 255 158 63 Core 17 | 8 . . . 9 Treads . | . . . . . Legs 852 | 36 349 255 158 54 Wheels 15 | 15 . . . . Hover . | . . . . . Flight . | . . . . . Fastest Speed 50 | 50 120 120 120 50 Average Speed 137 | 110 120 181 120 130 Slowest Speed 190 | 190 120 190 190 190 Overloaded Moves . | . . . . . Propulsion Burnouts . | . . . . . Robots Hopped . | . . . . . Cave-ins Triggered . | . . . . . Exploration Rate (%) 29 | 4 50 70 18 6 Regions Visited 4 Branch Regions 1 Pre-discovered Areas . | . . . . . Known Exits Taken 1 | . 1 . . . Unknown Exits Taken 3 | 1 . 1 1 . Scrap Searched 1 | . . 1 . . Spaces Dug . | . . . . . Terrain Destroyed 30 | . 2 6 1 21 Melee . | . . . . . Projectile 17 | . . . 1 16 AOE 13 | . 2 6 . 5 Terrain Rammed . | . . . . . Walls Destroyed . | . . . . . Machines Disabled . | . . . . . Actions | -11 -10 -10 -9 -8 --------- Run | Yrd Mat Min Mat Mat Total 1073 | 79 417 274 186 117 Wait 22 | . 7 . 6 9 Move 881 | 59 348 254 157 63 Hop . | . . . . . Pick Up 23 | 3 8 4 6 2 Fast Attach 11 | 7 1 . 1 2 Attach 15 | . . 1 3 11 Detach 2 | . . . 1 1 Swap 14 | 1 7 4 2 . Drop 17 | . 7 3 7 . Fire 56 | 6 11 7 3 29 Melee 29 | . 28 1 . . Ram . | . . . . . Kick 3 | 3 . . . . Crush . | . . . . . Escape Stasis . | . . . . . Rewire . | . . . . . Trap . | . . . . . Miscellaneous . | . . . . . Route ------- -11/Scrapyard -10/Materials (discovered 2 exits: *Mat / *Min) -10/Mines -9/Materials -8/Materials (discovered 1 exit: [*Sto]) History --------- Turn | Location | Event 8 | -11/Scrapyard | Discovered new exit (range 15) 103 | -11/Scrapyard | Entered Materials 224 | -10/Materials | Identified exit to Mines 315 | -10/Materials | Build established: Mutant 598 | -10/Materials | Discovered new exit (range 10) 652 | -10/Materials | Entered Mines 948 | -10/Mines | A weapon hastily lodged in a ceiling crevice suddenly fell to the ground 1113 | -10/Mines | Discovered new exit (range 13) 1141 | -10/Mines | Entered Materials 1141 | -9/Materials | Accompanied by 2 allies 1141 | -9/Materials | Evolved 2 slots: Propulsion x1, Utility x1 1146 | -9/Materials | Led the pair of lost Derelicts to an unsafe place 1336 | -9/Materials | Discovered new exit (range 12) 1362 | -9/Materials | Entered another Materials area 1362 | -8/Materials | Accompanied by 2 allies 1362 | -8/Materials | Evolved 2 slots: Power x1, Utility x1 1409 | -8/Materials | Discovered new exit (range 18) 1470 | -8/Materials | Build established: Scavenger-Mutant 1476 | -8/Materials | Lost 7 parts (2p2n3u) 1498 | -8/Materials | Core integrity fell below 50% 1520 | -8/Materials | Core integrity fell below 20% 1532 | -8/Materials | Released all parts (5) 1536 | -8/Materials | Destroyed by H-61 Shepherd with Heavy Assault Cannon Last Messages --------------- 01524_ Carbon-fiber Leg destroyed. 01526_ HV Slug penetrates Earth. 01528_ HV Slug penetrates Y-45 Defender. 01528_ Y-45 Defender suffers critical hit (Destroy). 01528_ Destroyed Lgt. Treads. 01528_ Y-45 Defender knocked back. 01528_ HV Slug penetrates Y-45 Defender. 01530_ Y-45 Defender heat spikes uncontrollably. 01531_ Y-45 Defender heat damages Hvy. Assault Rifle. 01531_ Bore Cannon destroyed. 01532_ Released Imp. Utility Shielding. 01532_ Released Weight Redist. System. 01532_ Released Visual Processing Unit. 01532_ Released Med. Storage Unit. 01532_ Released Deuterium Engine. 01533_ Y-45 Defender heat damages core (-6). 01533_ Acquired 7 matter. 01534_ Acquired 49 matter. 01536_ Y-45 Defender heat damages Hvy. Assault Rifle, Beam Rifle, Imp. Ion Engine, Lgt. Armor Plating. Map ----- +----------------------------------------------------+ | ??????????![ #[% ??????????????????????? | | ???????????[ % #??????????????????????? | | ???????????? %= "??????????????????????? | | ???????????? #??????????????????????? | | ????????????? ####???????????????????? | | ????????????? % !##??????????????????? | | ?????????????? !#??????????????????? | | ??????????????? *% !???????????????????? | | ??????????????? ????????????????????? | | ????????#+#####?" ?????????????????????? | | ????????? ?# ??????????????????????? | | ????????? """ # #??????????????????????? | | ?????????""""" # #??????????????????????? | | ??????# """"" ; "??????????????????????? | | ??????? """"" # % #??????????????????????? | | ????????? """ ?# #??????????????????????? | | ??????????? # % #??????????????????????? | | ????????????? ! # %#??????????????????????? | | ??????????????? ; #??????????????????????? | | ????????????????# #??????????????????????? | | ????????????????# ##?????????????????????? | | ????????????????# ;??????????????????????? | | ????????????????# #??????????????????????? | | ????????????????# ###????????????????????? | | ???????????????## % ###??????????????????? | | ?????????####### @ #??????????????????? | | ?????????# %Y ##??????????????????? | | ?????????# ! ** ###???????????????????? | | ?????????# % H[ #?????????????????????? | | ?????????# ! %= ##?????????????????????? | | ?????????# !%! #??????????????????????? | | ?????????# *%!%#####??????????????????????? | | ?????????########??????????????????????????? | | ???????????????????????????????????????????? | | ???????????????????????????????????????????? | | ???????????????????????????????????????????? | | ???????????????????????????????????????????? | | ???????????????????????????????????????????? | | | | | | | | | | | | | | | | | | | | | | | | | +----------------------------------------------------+ Best States ------------- Heat Dissipation 31 Energy Generation 27 Energy Capacity 325 Matter Stores 300 Matter Capacity 300 Sight Range 18 Terrain Scan Density 10 Additional Mass Support 6 Utility Shielding 66 Weapon Shielding 33 Evasion (%) 55 Targeting Accuracy 6 Item Schematics ----------------- None Robot Schematics ------------------ None Fabricated ------------ Nothing Alien Tech Used ----------------- None Achievements -------------- Dynamic Key Challenges ------------ None Game ------ Seed DecoyHackingReconstructor Manual? 0 Play Time 00:21:57 Cumulative 24.5 hours Start 2024.08.05 @ 19:04:31 End 2024.08.05 @ 19:26:01 Sessions 1 Manual Loads 0 Difficulty Rogue Special Mode None Game No. 33 Rogue 33 Adventurer 0 Explorer 0 Win Type - Total 0 Types 0/0/0/0/0/0/0/0/0 Lore% 26 Gallery% 34 Achievement% 23 Wizard Run 0 Options --------- Layout 0 ASCII 0 Keyboard 0 Movement Arrows Keybinds 0 Fullscreen 2 Font 24/Smallcaps Map View 76x50 Zoom Use 0% Tactical HUD 1 Map Filters NONE Filters NONE Steam 1 RUN: 67f2bf8e-a2a3-4211-88c4-0ec0dbe98ec3